fUSD/lending_fUSD_20250630
["ID","MTS","AMOUNT","RATE_DAILY","PERIOD"]
[368644051,1751261467108,-763.46,0.00017059,2]
[368644052,1751261467117,-490.0,0.00017059,2]
[368644053,1751261467125,-490.0,0.00017059,2]
[368644054,1751261467135,-490.0,0.00017059,2]
[368644055,1751261467144,-572.38,0.00017059,2]
[368644056,1751261467153,-490.0,0.00017059,2]
[368644057,1751261467162,-759.65,0.00017059,2]
[368644058,1751261467172,-641.48,0.00017059,2]
[368644059,1751261467181,-490.0,0.00017059,2]
[368644060,1751261467191,-490.0,0.00017059,2]
[368644061,1751261467200,-490.0,0.00017059,2]
[368644062,1751261467209,-712.69,0.00017059,2]
[368644063,1751261467219,-490.0,0.00017059,2]
[368644064,1751261467228,-490.0,0.00017059,2]
[368644065,1751261467237,-490.0,0.00017059,2]
[368644066,1751261467247,-1041.88,0.00017059,2]
[368644067,1751261467256,-162.60967868,0.00017059,2]
[368644068,1751261467265,-635.02,0.00017059,2]
[368644069,1751261467274,-204.5585618,0.00017059,2]
[368644070,1751261467283,-490.0,0.00017059,2]
[368644071,1751261467292,-490.0,0.00017059,2]
[368644072,1751261467302,-490.0,0.00017059,2]
[368644073,1751261467311,-832.42,0.00017059,2]
[368644074,1751261467320,-553.82,0.00017059,2]
[368644075,1751261467329,-490.0,0.00017059,2]
[368644076,1751261467339,-490.0,0.00017059,2]
[368644077,1751261467348,-1556.92,0.00017059,2]
[368644078,1751261467357,-490.0,0.00017059,2]
[368644079,1751261467366,-494.88,0.00017059,2]
[368644080,1751261467376,-490.0,0.00017059,2]
[368644081,1751261467385,-490.0,0.00017059,2]
[368644082,1751261467394,-490.0,0.00017059,2]
[368644083,1751261467403,-704.92,0.00017059,2]
[368644084,1751261467412,-490.0,0.00017059,2]
[368644085,1751261467421,-490.0,0.00017059,2]
[368644086,1751261467430,-490.0,0.00017059,2]
[368644087,1751261467439,-490.0,0.00017059,2]
[368644088,1751261467448,-490.0,0.00017059,2]
[368644089,1751261467457,-512.1,0.00017059,2]
[368644090,1751261467467,-541.2,0.00017059,2]
[368644091,1751261467475,-490.0,0.00017059,2]
[368644092,1751261467485,-490.0,0.00017059,2]
[368644093,1751261467497,-490.0,0.00017059,2]
[368644094,1751261467506,-490.0,0.00017059,2]
[368644095,1751261467515,-490.0,0.00017059,2]
[368644096,1751261467524,-490.0,0.00017059,2]
[368644097,1751261467536,-490.0,0.00017059,2]
[368644098,1751261467546,-490.0,0.00017059,2]
[368644099,1751261467555,-496.74420151,0.00017059,2]
[368644100,1751261467566,-490.0,0.00017059,2]
[368644101,1751261467575,-490.0,0.00017059,2]
[368644102,1751261467585,-840.62,0.00017059,2]
[368644103,1751261467595,-490.0,0.00017059,2]
[368644104,1751261467605,-490.0,0.00017059,2]
[368644105,1751261467616,-962.55,0.00017059,2]
[368644106,1751261467630,-490.0,0.00017059,2]
[368644107,1751261467640,-837.23,0.00017059,2]
[368644108,1751261467651,-489.83458066,0.00017059,2]
[368644109,1751261467661,-490.0,0.00017059,2]
[368644110,1751261467672,-490.0,0.00017059,2]
[368644111,1751261467683,-490.0,0.00017059,2]
[368644112,1751261467692,-925.49,0.00017059,2]
[368644113,1751261467702,-490.0,0.00017059,2]
[368644114,1751261467712,-490.0,0.00017059,2]
[368644115,1751261467721,-490.0,0.00017059,2]
[368644116,1751261467730,-490.0,0.00017059,2]
[368644117,1751261467739,-490.0,0.00017059,2]
[368644118,1751261467748,-490.0,0.00017059,2]
[368644119,1751261467757,-490.0,0.00017059,2]
[368644120,1751261467765,-490.0,0.00017059,2]
[368644121,1751261467774,-623.55,0.00017059,2]
[368644122,1751261467783,-490.0,0.00017059,2]
[368644123,1751261467792,-490.0,0.00017059,2]
[368644124,1751261467801,-490.0,0.00017059,2]
[368644125,1751261467810,-568.05,0.00017059,2]
[368644126,1751261467820,-973.33,0.00017059,2]
[368644127,1751261467829,-490.0,0.00017059,2]
[368644128,1751261467839,-627.01,0.00017059,2]
[368644129,1751261467850,-739.53,0.00017059,2]
[368644130,1751261467861,-697.49,0.00017059,2]
[368644131,1751261467870,-490.0,0.00017059,2]
[368644132,1751261467880,-490.0,0.00017059,2]
[368644133,1751261467891,-490.0,0.00017059,2]
[368644134,1751261467902,-1821.51,0.00017059,2]
[368644135,1751261467912,-490.0,0.00017059,2]
[368644136,1751261467921,-791.92,0.00017059,2]
[368644137,1751261467932,-260.03725118,0.00017059,2]
[368644138,1751261467942,-490.0,0.00017059,2]
[368644139,1751261467952,-490.0,0.00017059,2]
[368644140,1751261467961,-712.09,0.00017059,2]
[368644141,1751261467971,-1478.69,0.00017059,2]
[368644142,1751261467980,-520.99,0.00017059,2]
[368644143,1751261467990,-490.0,0.00017059,2]
[368644144,1751261468000,-490.0,0.00017059,2]
[368644145,1751261468010,-691.35,0.00017059,2]
[368644146,1751261468019,-813.21,0.00017059,2]
[368644147,1751261468028,-490.0,0.00017059,2]
[368644148,1751261468035,-1135.95,0.00017059,2]
[368644149,1751261468044,-490.0,0.00017059,2]
[368644150,1751261468053,-653.83,0.00017059,2]
[368644151,1751261468060,-1591.54,0.00017059,2]
[368644152,1751261468068,-790.43,0.00017059,2]
[368644153,1751261468076,-713.04,0.00017059,2]
[368644154,1751261468084,-575.38,0.00017059,2]
[368644155,1751261468093,-1434.74,0.00017059,2]
[368644156,1751261468101,-1114.57,0.00017059,2]
[368644157,1751261468109,-490.0,0.00017059,2]
[368644158,1751261468117,-608.48,0.00017059,2]
[368644159,1751261468126,-490.0,0.00017059,2]
[368644160,1751261468134,-531.41,0.00017059,2]
[368644161,1751261468142,-1083.63,0.00017059,2]
[368644162,1751261468150,-516.65,0.00017059,2]
[368644163,1751261468159,-490.0,0.00017059,2]
[368644164,1751261468168,-490.0,0.00017059,2]
[368644165,1751261468176,-490.0,0.00017059,2]
[368644166,1751261468184,-490.0,0.00017059,2]
[368644167,1751261468193,-490.0,0.00017059,2]
[368644168,1751261468200,-992.96,0.00017059,2]
[368644169,1751261468208,-490.0,0.00017059,2]
[368644170,1751261468217,-490.0,0.00017059,2]
[368644171,1751261468225,-490.0,0.00017059,2]
[368644172,1751261468233,-490.0,0.00017059,2]
[368644173,1751261468241,-490.0,0.00017059,2]
[368644174,1751261468247,-490.0,0.00017059,2]
[368644175,1751261468256,-490.0,0.00017059,2]
[368644176,1751261468264,-490.0,0.00017059,2]
[368644177,1751261468274,-490.0,0.00017059,2]
[368644178,1751261468282,-490.0,0.00017059,2]
[368644179,1751261468291,-621.88,0.00017059,2]
[368644180,1751261468301,-834.85,0.00017059,2]
[368644181,1751261468310,-947.21,0.00017059,2]
[368644182,1751261468319,-490.0,0.00017059,2]
[368644183,1751261468329,-490.0,0.00017059,2]
[368644184,1751261468340,-490.0,0.00017059,2]
[368644185,1751261468350,-668.3,0.00017059,2]
[368644186,1751261468359,-490.0,0.00017059,2]
[368644187,1751261468369,-636.23,0.00017059,2]
[368644188,1751261468378,-490.0,0.00017059,2]
[368644189,1751261468386,-490.0,0.00017059,2]
[368644190,1751261468395,-591.05,0.00017059,2]
[368644191,1751261468404,-490.0,0.00017059,2]
[368644192,1751261468414,-679.59,0.00017059,2]
[368644193,1751261468423,-490.0,0.00017059,2]
[368644194,1751261468432,-490.0,0.00017059,2]
[368644195,1751261468441,-550.91,0.00017059,2]
[368644196,1751261468450,-711.34,0.00017059,2]
[368644197,1751261468460,-469.55887883,0.00017059,2]
[368644198,1751261468469,-6064.38,0.00017059,2]
[368644199,1751261468479,-1242.85,0.00017059,2]
[368644200,1751261468489,-490.0,0.00017059,2]
[368644201,1751261468498,-490.0,0.00017059,2]
[368644202,1751261468507,-490.0,0.00017059,2]
[368644203,1751261468516,-2281.25,0.00017059,2]
[368644204,1751261468526,-809.1,0.00017059,2]
[368644205,1751261468534,-490.0,0.00017059,2]
[368644206,1751261468543,-490.0,0.00017059,2]
[368644207,1751261468553,-4277.01,0.00017059,2]
[368644208,1751261468562,-490.0,0.00017059,2]
[368644209,1751261468571,-490.0,0.00017059,2]
[368644210,1751261468579,-490.0,0.00017059,2]
[368644211,1751261468588,-490.0,0.00017059,2]
[368644212,1751261468597,-490.0,0.00017059,2]
[368644213,1751261468606,-3159.17,0.00017059,2]
[368644214,1751261468615,-490.0,0.00017059,2]
[368644215,1751261468625,-1693.51,0.00017059,2]
[368644216,1751261468634,-490.0,0.00017059,2]
[368644217,1751261468643,-490.0,0.00017059,2]
[368644218,1751261468653,-490.0,0.00017059,2]
[368644219,1751261468663,-490.0,0.00017059,2]
[368644220,1751261468672,-490.0,0.00017059,2]
[368644221,1751261468682,-490.0,0.00017059,2]
[368644222,1751261468691,-539.86,0.00017059,2]
[368644223,1751261468700,-1383.39,0.00017059,2]
[368644224,1751261468709,-1486.21,0.00017059,2]
[368644225,1751261468719,-1877.79,0.00017059,2]
[368644226,1751261468728,-1249.02,0.00017059,2]
[368644227,1751261468738,-3697.64,0.00017059,2]
[368644228,1751261468747,-490.0,0.00017059,2]
[368644229,1751261468756,-490.0,0.00017059,2]
[368644230,1751261468766,-490.0,0.00017059,2]
[368644231,1751261468775,-2742.8,0.00017059,2]
[368644232,1751261468785,-1434.96,0.00017059,2]
[368644233,1751261468794,-490.0,0.00017059,2]
[368644234,1751261468804,-688.79,0.00017059,2]
[368644235,1751261468814,-4879.16,0.00017059,2]
[368644236,1751261468824,-490.0,0.00017059,2]
[368644237,1751261468833,-5308.24,0.00017059,2]
[368644238,1751261468843,-866.84,0.00017059,2]
[368644239,1751261468853,-490.0,0.00017059,2]
[368644240,1751261468863,-1060.33,0.00017059,2]
[368644241,1751261468872,-2960.74,0.00017059,2]
[368644242,1751261468881,-221.41641667,0.00017059,2]
[368644243,1751261468891,-3693.04,0.00017059,2]
[368644244,1751261468900,-490.0,0.00017059,2]
[368644245,1751261468909,-2489.37,0.00017059,2]
[368644246,1751261468918,-490.0,0.00017059,2]
[368644247,1751261468928,-2526.54,0.00017059,2]
[368644248,1751261468938,-645.5,0.00017059,2]
[368644249,1751261468947,-490.0,0.00017059,2]
[368644250,1751261468956,-490.0,0.00017059,2]
[368644251,1751261468966,-3152.87,0.00017059,2]
[368644252,1751261468975,-490.0,0.00017059,2]
[368644253,1751261468985,-610.43,0.00017059,2]
[368644254,1751261468994,-904.4,0.00017059,2]
[368644255,1751261469003,-490.0,0.00017059,2]
[368644256,1751261469013,-2753.28,0.00017059,2]
[368644257,1751261469023,-490.0,0.00017059,2]
[368644258,1751261469032,-3596.06,0.00017059,2]
[368644259,1751261469042,-490.0,0.00017059,2]
[368644260,1751261469052,-36617.2,0.00017059,2]
[368644261,1751261469062,-267.43980997,0.00017059,2]
[368644262,1751261469071,-2545.62,0.00017059,2]
[368644263,1751261469080,-1235.51,0.00017059,2]
[368644264,1751261469090,-490.0,0.00017059,2]
[368644265,1751261469099,-490.0,0.00017059,2]
[368644266,1751261469108,-490.0,0.00017059,2]
[368644267,1751261469118,-496.64872439,0.00017059,2]
[368644268,1751261469127,-751.66,0.00017059,2]
[368644269,1751261469136,-5917.02,0.00017059,2]
[368644270,1751261469146,-11506.42,0.00017059,2]
[368644271,1751261469156,-490.0,0.00017059,2]
[368644272,1751261469165,-490.0,0.00017059,2]
[368644273,1751261469175,-3561.53,0.00017059,2]
[368644274,1751261469184,-490.0,0.00017059,2]
[368644275,1751261469193,-1510.9,0.00017059,2]
[368644276,1751261469203,-490.0,0.00017059,2]
[368644277,1751261469212,-11957.51,0.00017059,2]
[368644278,1751261469221,-616.54,0.00017059,2]
[368644279,1751261469230,-884.81,0.00017059,2]
[368644280,1751261469239,-1345.87,0.00017059,2]
[368644281,1751261469249,-714.4,0.00017059,2]
[368644282,1751261469259,-4587.09,0.00017059,2]
[368644283,1751261469268,-490.0,0.00017059,2]
[368644284,1751261469278,-5665.78,0.00017059,2]
[368644285,1751261469288,-490.0,0.00017059,2]
[368644286,1751261469297,-1293.55,0.00017059,2]
[368644287,1751261469306,-490.0,0.00017059,2]
[368644288,1751261469316,-800.44,0.00017059,2]
[368644289,1751261469325,-7598.73,0.00017059,2]
[368644290,1751261469335,-2875.98,0.00017059,2]
[368644291,1751261469344,-490.0,0.00017059,2]
[368644292,1751261469354,-490.0,0.00017059,2]
[368644293,1751261469363,-460.22026281,0.00017059,2]
[368644294,1751261469373,-633.07,0.00017059,2]
[368644295,1751261469382,-5335.28,0.00017059,2]
[368644296,1751261469392,-684.83,0.00017059,2]
[368644297,1751261469402,-490.0,0.00017059,2]
[368644298,1751261469412,-490.0,0.00017059,2]
[368644299,1751261469421,-3573.81,0.00017059,2]
[368644300,1751261469431,-492.68392259,0.00017059,2]
[368644301,1751261469440,-490.0,0.00017059,2]
[368644302,1751261469449,-9914.6,0.00017059,2]
[368644303,1751261469459,-490.0,0.00017059,2]
[368644304,1751261469469,-1899.47,0.00017059,2]
[368644305,1751261469478,-490.0,0.00017059,2]
[368644306,1751261469488,-1467.97,0.00017059,2]
[368644307,1751261469500,-490.0,0.00017059,2]
[368644308,1751261469509,-579.08,0.0001706,2]
[368644309,1751261469518,-490.0,0.0001706,2]
[368644310,1751261469528,-655.97,0.0001706,2]
[368644311,1751261469537,-919.12,0.0001706,2]
[368644312,1751261469546,-490.0,0.0001706,2]
[368644313,1751261469556,-490.0,0.0001706,2]
[368644314,1751261469566,-1598.72,0.0001706,2]
[368644315,1751261469575,-1410.14,0.00017065,2]
[368644316,1751261469584,-549.49,0.00017065,2]
[368644317,1751261469593,-837.49,0.00017065,2]
[368644318,1751261469602,-684.83,0.00017065,2]
[368644319,1751261469612,-490.0,0.00017066,2]
[368644320,1751261469621,-292.22995608,0.00017066,2]
[368644321,1751261469630,-490.0,0.00017066,2]
[368644322,1751261469639,-727.35,0.00017066,2]
[368644323,1751261469648,-727.35,0.00017066,2]
[368644324,1751261469658,-490.0,0.00017066,2]
[368644325,1751261469666,-490.0,0.00017066,2]
[368644326,1751261469675,-1894.93,0.00017066,2]
[368644327,1751261469685,-490.0,0.00017067,2]
[368644328,1751261469693,-417.83266714,0.00017067,2]
[368644329,1751261469703,-1410.14,0.00017067,2]
[368644330,1751261469712,-490.0,0.00017067,2]
[368644331,1751261469721,-490.0,0.00017067,2]
[368644332,1751261469731,-490.0,0.00017067,2]
[368644333,1751261469740,-490.0,0.00017067,2]
[368644334,1751261469749,-490.0,0.00017067,2]
[368644335,1751261469758,-568.7,0.00017067,2]
[368644336,1751261469767,-490.0,0.00017067,2]
[368644337,1751261469777,-549.49,0.00017067,2]
[368644338,1751261469786,-3974.34,0.00017067,2]
[368644339,1751261469795,-4480.85,0.00017067,2]
[368644340,1751261469806,-490.0,0.00017067,2]
[368644341,1751261469815,-490.0,0.00017067,2]
[368644342,1751261469824,-25235.38,0.00017067,2]
[368644343,1751261469834,-9616.9,0.00017067,2]
[368644344,1751261469843,-8938.03,0.00017067,2]
[368644345,1751261469853,-5518.87,0.00017067,2]
[368644346,1751261469862,-11498.27,0.00017067,2]
[368644347,1751261469872,-1939.92,0.00017067,2]
[368644348,1751261469881,-1894.93,0.00017067,2]
[368644349,1751261469890,-1894.93,0.00017067,2]
[368644350,1751261469899,-3158.98,0.00017067,2]
[368644351,1751261469908,-1249.16,0.00017067,2]
[368644352,1751261469918,-1249.16,0.00017067,2]
[368644353,1751261469927,-20157.46,0.00017067,2]
[368644354,1751261469937,-3276.11,0.00017067,2]
[368644355,1751261469946,-5938.27,0.00017067,2]
[368644356,1751261469956,-2233.17,0.00017067,2]
[368644357,1751261469965,-9132.57194566,0.00017067,2]
[368644358,1751261473082,-490.0,0.00016695,2]
[368644359,1751261473092,-1110.5295,0.00016696,2]
[368644360,1751261473104,-1.8705,0.00016696,2]
[368644361,1751261473114,-3458.40516,0.00016696,2]
[368644362,1751261473132,-1839.8278,0.00016696,2]
[368644411,1751261921606,150.0,0.00013813,2]
[368644412,1751261937704,6156.62,0.00027397,120]
[368644413,1751261952087,200.0,0.00021156,30]
[368644415,1751262417886,331.67,0.00013699,2]
[368644475,1751262633019,-300.0,0.00014201,2]
[368644476,1751262633028,-300.0,0.0001458,2]
[368644477,1751262633038,-248.42,0.00015164,2]
[368644478,1751262633047,-151.0,0.00015265,2]
[368644479,1751262633056,-300.0,0.00015273,2]
[368644480,1751262633065,-9331.71,0.00015274,2]
[368644481,1751262633075,-388.8,0.00015303,2]
[368644482,1751262633084,-165.1,0.0001534,2]
[368644483,1751262633094,-300.0,0.00015573,2]
[368644484,1751262633105,-150.0,0.00015677,2]
[368644485,1751262633122,-250.0,0.00015716,2]
[368644486,1751262633141,-1000.0,0.00015737,2]
[368644487,1751262633161,-150.0,0.00015835,2]
[368644488,1751262633171,-150.0,0.00015871,2]
[368644489,1751262633180,-306.0,0.00015906,2]
[368644490,1751262633190,-187.96719656,0.00015906,2]
[368644491,1751262633200,-207.4,0.0001611,2]
[368644492,1751262633210,-219.59182539,0.00016593,2]
[368644493,1751262633219,-167.82778377,0.00016594,2]
[368644494,1751262633228,-28554.40908541,0.00016595,2]
[368644495,1751262633245,-814.61400265,0.00016595,2]
[368644496,1751262633287,-826.29,0.00016595,2]
[368644497,1751262633346,-6482.39590615,0.00016595,2]
[368644498,1751262633377,-352.0,0.00016595,2]
[368644505,1751262638015,-1678.58141656,0.00016595,2]
[368644506,1751262638180,-5257.95938699,0.00016595,2]
[368644507,1751262638193,-389.57019752,0.00016595,2]
[368644508,1751262638205,-659.69531975,0.00016595,2]
[368644509,1751262638299,-560.5802025,0.00016595,2]
[368644703,1751262640271,-2150.32041182,0.00016595,2]
[368644705,1751262640283,-3523.44102625,0.00016595,2]
[368644751,1751262640711,-864.41970205,0.00016595,2]
[368645828,1751262824898,229.27,0.00027397,120]
[368645829,1751262869812,200.0,0.00021383,30]
[368645830,1751263035205,229.27,0.0002739,120]
[368645833,1751263214987,1700.4981281,0.00027,120]
[368645836,1751263402874,637.37188486,0.00016849,30]
[368645837,1751263403016,637.37188486,0.00016932,30]
[368645838,1751263403109,637.37188486,0.00016986,30]
[368645839,1751263403234,637.37188486,0.00017068,30]
[368645840,1751263403361,637.37188486,0.00017123,30]
[368645841,1751263403484,637.37188486,0.00017205,30]
[368645842,1751263403595,637.37188486,0.0001726,30]
[368645843,1751263403716,637.37188486,0.00017342,30]
[368645844,1751263403844,637.37188486,0.00017397,30]
[368645845,1751263403973,637.37188486,0.00017452,30]
[368645846,1751263404082,637.37188486,0.00017534,30]
[368645847,1751263404204,637.37188486,0.00017589,30]
[368645848,1751263441854,35.18220277,0.00013699,2]
[368645849,1751263441877,279.89779723,0.00013699,2]
[368645851,1751263645705,509.0,0.00013875,2]
[368645852,1751263645921,509.0,0.00018488,7]
[368645854,1751263788682,200.0,0.00021323,30]
[368645855,1751263791102,200.0,0.00021164,30]
[368645856,1751263801368,200.0,0.00027397,120]
[368645857,1751263822327,733.77585,0.00022001,29]
[368645858,1751263822580,733.77585,0.00022001,29]
[368645859,1751263822831,733.77585,0.00022001,29]
[368645860,1751263823095,733.77585,0.00022001,29]
[368645861,1751263823324,733.77586,0.00022001,29]
[368645862,1751263832351,-338.18,0.00015687,2]
[368645863,1751263832362,-314.16217803,0.00015687,2]
[368645864,1751263832412,-8.66883823,0.00015687,2]
[368645865,1751263832422,-308.84,0.00015707,2]
[368645866,1751263832432,-29.90251787,0.00015744,2]
[368645867,1751263832471,-626.7800901,0.00015744,2]
[368645869,1751263832530,-343.31739203,0.00015744,2]
[368645870,1751263832539,-29.90251787,0.00016193,2]
[368646160,1751263840509,-522.34110553,0.00016193,2]
[368646162,1751263840519,-124.32118207,0.0001646,2]
[368646224,1751263840973,-2760.42189793,0.0001646,2]
[368646226,1751263840983,-197.63264286,0.00016492,2]
[368646228,1751263840993,-167.82778374,0.00016494,2]
[368646230,1751263841002,-2512.32656032,0.0001652,2]
[368647094,1751263854870,224.72,0.00013875,2]
[368647095,1751263871404,-2048.84,0.00015639,2]
[368647096,1751263871427,-372.41651968,0.0001652,2]
[368647097,1751263871451,-197.63264277,0.00016564,2]
[368647098,1751263871474,-174.97,0.00016579,2]
[368647099,1751263871496,-2884.74307,0.0001658,2]
[368647100,1751263871520,-174.97,0.0001658,2]
[368647101,1751263871543,-174.97,0.00016583,2]
[368647102,1751263871565,-174.97,0.00016583,2]
[368647103,1751263871589,-207.4,0.00016585,2]
[368647104,1751263871612,-300.0,0.00016588,2]
[368647105,1751263871634,-13139.6885867,0.00016589,2]
[368647106,1751263871657,-20149.39918085,0.00016589,2]
[368647107,1751263945257,203.0,0.00013875,2]
[368647108,1751264064744,200.0,0.00015595,7]
[368647117,1751264366374,1028.50880445,0.00019,7]
[368647119,1751264641684,307.27,0.00013699,2]
[368647120,1751264692015,-10000.0,0.00015,2]
[368647121,1751264708091,38476.11220277,0.00014,2]
[368647122,1751264708120,40000.0,0.00014,2]
[368647123,1751264709203,200.0,0.00021326,30]
[368647124,1751264709565,200.0,0.0002092,30]
[368647125,1751264741899,159.79517477,0.0002,30]
[368647126,1751264744521,-195091.0,0.00014,2]
[368647127,1751264779217,3154.78703625,0.000209,30]
[368647128,1751264790559,-287.0,0.00013999,2]
[368647129,1751264790586,-300.0,0.00013999,2]
[368647130,1751264790611,-606.0,0.00013999,2]
[368647131,1751264790639,-96828.98,0.00014,2]
[368647132,1751264816564,1576.00685317,0.00015,14]
[368647135,1751264896692,191.20537099,0.00012,30]
[368647136,1751264941104,428.0,0.00015,7]
[368647137,1751264950343,594.57644015,0.000139,2]
[368647156,1751265031728,-2878.42,0.00014,2]
[368647157,1751265031742,-56182.49557397,0.00014,2]
[368647158,1751265031899,-143587.74167791,0.00014,2]
[368647159,1751265031910,-56876.64842737,0.00014,2]
[368647160,1751265031922,-38819.12157263,0.00014,2]
[368647161,1751265031932,-1000.0,0.00014596,3]
[368647162,1751265031944,-505.96514752,0.000146,2]
[368647163,1751265031953,-204.22990744,0.000146,2]
[368647164,1751265031964,-504.79205713,0.000146,2]
[368647165,1751265031975,-507.37982958,0.000146,2]
[368647166,1751265031985,-167.82778374,0.00015082,2]
[368647168,1751265031995,-27363.70685635,0.00015182,2]
[368647193,1751265032222,-603.2,0.00015182,2]
[368647467,1751265040613,-732.52936965,0.0001399,2]
[368647468,1751265041954,200.0,0.00015134,7]
[368647469,1751265042873,-1119.28712229,0.0001399,2]
[368647470,1751265042884,-854.01624939,0.0001399,2]
[368647480,1751265045659,-266.01435378,0.0001399,2]
[368647481,1751265045672,-4943.99391338,0.0001399,2]
[368647482,1751265045682,-473.33648662,0.00015182,2]
[368647483,1751265045751,-312.23518003,0.00015182,2]
[368647484,1751265045763,-287.54806406,0.00015182,2]
[368647805,1751265574468,150.0,0.00014103,4]
[368647807,1751265603958,329.3,0.00013699,2]
[368647808,1751265629039,200.0,0.00021348,30]
[368647809,1751265895138,23900.0,0.00014087,2]
[368647810,1751266012056,61858.05561448,0.00014,2]
[368647811,1751266153357,175.161206,0.00022,30]
[368647812,1751266215937,5000.0,0.00014077,2]
[368647816,1751266231748,-276.07,0.00014166,2]
[368647817,1751266231758,-167.03,0.00014373,2]
[368647818,1751266231767,-510.038,0.00014393,2]
[368647819,1751266231837,-4796.622,0.00014393,2]
[368647820,1751266231847,-259.39,0.00014423,2]
[368647821,1751266231856,-876.0,0.00014772,2]
[368647822,1751266231865,-876.0,0.00014781,2]
[368647823,1751266231875,-1200.0,0.00014808,2]
[368647824,1751266231884,-876.0,0.0001481,2]
[368647825,1751266231893,-1000.0,0.00014844,2]
[368647826,1751266231904,-200.0,0.00014844,2]
[368647827,1751266231913,-2878.42,0.00014853,2]
[368647828,1751266231922,-199.09212493,0.00014856,2]
[368647829,1751266231931,-3458.6600095,0.00014865,2]
[368647830,1751266231960,-541.65929644,0.00014865,2]
[368647831,1751266231999,-2936.31964021,0.00014865,2]
[368647832,1751266232010,-98.68105385,0.00014865,2]
[368647833,1751266232020,-864.15,0.00014866,2]
[368647834,1751266232029,-169.09,0.00014894,2]
[368647835,1751266232038,-876.0,0.00014937,2]
[368647836,1751266232047,-552.2436235,0.00014983,2]
[368647837,1751266232056,-40105.65034574,0.00015,3]
[368647838,1751266232188,-719.84976355,0.00015,3]
[368647839,1751266232200,-400.0,0.00015,3]
[368647842,1751266232211,-2913.61668855,0.00015,3]
[368647845,1751266232222,-97160.8004788,0.00015,3]
[368647848,1751266232231,-150.99,0.00015,2]
[368647852,1751266232241,-175.161206,0.00015,3]
[368647856,1751266232250,-196.88634669,0.00015053,2]
[368647861,1751266232259,-167.82778374,0.00015082,2]
[368647865,1751266232268,-4175.75195355,0.00015083,2]
[368647869,1751266232278,-876.0,0.00015157,2]
[368647873,1751266232287,-168.0,0.0001516,2]
[368647877,1751266232296,-168.0,0.00015171,2]
[368647881,1751266232305,-296.73197466,0.00015171,2]
[368647885,1751266232314,-151.391296,0.00015173,2]
[368647888,1751266232323,-500.0,0.00015181,2]
[368647890,1751266232332,-554.46262363,0.00015181,2]
[368647893,1751266232341,-416.38225137,0.00015181,2]
[368647896,1751266232350,-4369.76147175,0.00015181,2]
[368647899,1751266232360,-204897.362,0.00015182,2]
[368647902,1751266232369,-4975.5314255,0.00015182,2]
[368647903,1751266232377,-5777.5798874,0.00015182,2]
[368647904,1751266232386,-11690.2679613,0.00015182,2]
[368647905,1751266232395,-66767.0,0.00015182,2]
[368647906,1751266232406,-500.0,0.00015191,2]
[368647907,1751266232416,-175.41657952,0.00015191,2]
[368647908,1751266232426,-152.3364388,0.00015191,2]